fUST/lending_fUST_20250614
["ID","MTS","AMOUNT","RATE_DAILY","PERIOD"]
[365699570,1749834339050,-440.0,0.00021095,4]
[365699571,1749834339073,-163.6,0.00021095,4]
[365699572,1749834339096,-460.0,0.00021095,4]
[365699573,1749834339117,-440.0,0.00021095,4]
[365699574,1749834339137,-428.81033719,0.00021095,4]
[365699575,1749834339160,-460.0,0.00021095,4]
[365699576,1749834339181,-440.0,0.00021095,4]
[365699577,1749834339202,-440.0,0.00021095,4]
[365699578,1749834339222,-420.78471133,0.00021095,4]
[365699579,1749834339243,-460.0,0.00021095,4]
[365699580,1749834339264,-443.98371043,0.00021095,4]
[365699581,1749834339287,-468.86193268,0.00021095,4]
[365699582,1749834339310,-440.0,0.00021095,4]
[365699583,1749834339333,-460.0,0.00021095,4]
[365699584,1749834339355,-460.0,0.00021095,4]
[365699585,1749834339385,-430.0,0.00021095,4]
[365699586,1749834339412,-440.0,0.00021095,4]
[365699587,1749834339434,-440.0,0.00021095,4]
[365699588,1749834339625,-817.76,0.00021095,4]
[365699589,1749834339647,-375.87908355,0.00021095,4]
[365699590,1749834339673,-3216.04,0.00021095,4]
[365699591,1749834339696,-440.0,0.00021095,4]
[365699592,1749834339720,-460.0,0.00021095,4]
[365699593,1749834339742,-460.0,0.00021095,4]
[365699594,1749834339765,-460.0,0.00021095,4]
[365699595,1749834339789,-440.0,0.00021095,4]
[365699596,1749834339813,-1763.32,0.00021095,4]
[365699597,1749834339835,-528.94953731,0.00021095,4]
[365699598,1749834339857,-513.23098265,0.00021095,4]
[365699599,1749834339880,-460.0,0.00021095,4]
[365699600,1749834339903,-430.0,0.00021095,4]
[365699601,1749834339924,-460.0,0.00021095,4]
[365699602,1749834339945,-430.0,0.00021095,4]
[365699603,1749834339967,-440.0,0.00021095,4]
[365699604,1749834339988,-347.22070214,0.00021095,4]
[365699605,1749834340010,-440.0,0.00021095,4]
[365699606,1749834340032,-534.88135862,0.00021095,4]
[365699607,1749834340057,-2692.28,0.00021095,4]
[365699608,1749834340079,-460.0,0.00021095,4]
[365699609,1749834340101,-460.0,0.00021095,4]
[365699610,1749834340124,-440.0,0.00021095,4]
[365699611,1749834340147,-440.0,0.00021095,4]
[365699612,1749834340170,-440.0,0.00021095,4]
[365699613,1749834340192,-430.0,0.00021095,4]
[365699614,1749834340213,-460.0,0.00021095,4]
[365699615,1749834340239,-1282.25,0.00021095,4]
[365699616,1749834340261,-430.0,0.00021095,4]
[365699617,1749834340285,-460.0,0.00021095,4]
[365699618,1749834340308,-440.0,0.00021095,4]
[365699619,1749834340330,-417.86177832,0.00021095,4]
[365699620,1749834340352,-440.0,0.00021095,4]
[365699621,1749834340374,-573.66782447,0.00021095,4]
[365699622,1749834340398,-460.0,0.00021095,4]
[365699623,1749834340421,-466.74565452,0.00021095,4]
[365699624,1749834340446,-828.28,0.00021095,4]
[365699625,1749834340470,-463.38,0.00021095,4]
[365699626,1749834340492,-440.0,0.00021095,4]
[365699627,1749834340515,-440.0,0.00021095,4]
[365699628,1749834340540,-460.0,0.00021095,4]
[365699629,1749834340562,-440.0,0.00021095,4]
[365699630,1749834340588,-440.0,0.00021095,4]
[365699631,1749834340615,-406.09472844,0.00021095,4]
[365699632,1749834340638,-440.0,0.00021095,4]
[365699633,1749834340661,-440.0,0.00021095,4]
[365699634,1749834340682,-430.0,0.00021095,4]
[365699635,1749834340703,-430.0,0.00021095,4]
[365699636,1749834340726,-440.0,0.00021095,4]
[365699637,1749834340749,-440.0,0.00021095,4]
[365699638,1749834340772,-430.0,0.00021095,4]
[365699639,1749834340795,-460.0,0.00021095,4]
[365699640,1749834340817,-460.0,0.00021095,4]
[365699641,1749834340841,-431.1115336,0.00021095,4]
[365699642,1749834340863,-430.0,0.00021095,4]
[365699643,1749834340885,-430.0,0.00021095,4]
[365699644,1749834340908,-460.0,0.00021095,4]
[365699645,1749834340931,-440.0,0.00021095,4]
[365699646,1749834340953,-428.82290992,0.00021095,4]
[365699647,1749834340975,-460.0,0.00021095,4]
[365699648,1749834340998,-460.0,0.00021095,4]
[365699649,1749834341019,-434.96709773,0.00021095,4]
[365699650,1749834341044,-1259.83,0.00021095,4]
[365699651,1749834341067,-500.0,0.00021095,4]
[365699652,1749834341089,-460.0,0.00021095,4]
[365699653,1749834341111,-500.0,0.00021095,4]
[365699654,1749834341135,-2982.31,0.00021095,4]
[365699655,1749834341157,-500.0,0.00021095,4]
[365699656,1749834341179,-500.0,0.00021095,4]
[365699657,1749834341202,-612.69,0.00021095,4]
[365699658,1749834341223,-440.0,0.00021095,4]
[365699659,1749834341246,-460.0,0.00021095,4]
[365699660,1749834341266,-431.70411064,0.00021095,4]
[365699661,1749834341289,-440.0,0.00021095,4]
[365699662,1749834341311,-440.0,0.00021095,4]
[365699663,1749834341333,-432.96293593,0.00021095,4]
[365699664,1749834341354,-460.0,0.00021095,4]
[365699665,1749834341377,-460.0,0.00021095,4]
[365699666,1749834341399,-460.0,0.00021095,4]
[365699667,1749834341420,-332.41062033,0.00021095,4]
[365699668,1749834341443,-440.0,0.00021095,4]
[365699669,1749834341471,-467.77561153,0.00021095,4]
[365699670,1749834341506,-460.0,0.00021095,4]
[365699671,1749834341529,-460.0,0.00021095,4]
[365699672,1749834341553,-440.0,0.00021095,4]
[365699673,1749834341577,-460.0,0.00021095,4]
[365699674,1749834341604,-440.0,0.00021095,4]
[365699675,1749834341627,-440.0,0.00021095,4]
[365699676,1749834341651,-460.0,0.00021095,4]
[365699677,1749834341676,-432.20158728,0.00021095,4]
[365699678,1749834341698,-430.0,0.00021095,4]
[365699679,1749834341720,-440.00000002,0.00021095,4]
[365699680,1749834341742,-430.0,0.00021095,4]
[365699681,1749834341765,-460.0,0.00021095,4]
[365699682,1749834341790,-460.0,0.00021095,4]
[365699683,1749834341812,-200.0,0.00021095,10]
[365699684,1749834341834,-200.0,0.00021095,10]
[365699685,1749834341857,-440.0,0.00021095,4]
[365699686,1749834341879,-200.0,0.00021095,10]
[365699687,1749834341901,-200.0,0.00021095,10]
[365699688,1749834341924,-754.09,0.00021095,4]
[365699689,1749834341947,-200.0,0.00021095,10]
[365699690,1749834341973,-492.56750436,0.00021095,4]
[365699691,1749834357077,-1487.19,0.00021085,10]
[365699692,1749834357098,-300.0,0.00021094,2]
[365699693,1749834357121,-583.31249564,0.00021095,4]
[365699694,1749834357141,-440.0,0.00021095,4]
[365699695,1749834357162,-200.0,0.00021095,10]
[365699696,1749834357182,-200.0,0.00021095,10]
[365699697,1749834357203,-200.0,0.00021095,10]
[365699698,1749834357226,-440.0,0.00021095,4]
[365699699,1749834357248,-440.0,0.00021095,4]
[365699700,1749834357273,-2674.28,0.00021095,4]
[365699701,1749834357294,-440.0,0.00021095,4]
[365699702,1749834357315,-460.0,0.00021095,4]
[365699703,1749834357336,-400.0,0.00021095,4]
[365699704,1749834357357,-460.0,0.00021095,4]
[365699705,1749834357380,-561.33,0.00021095,4]
[365699706,1749834357403,-430.0,0.00021095,4]
[365699707,1749834357424,-460.0,0.00021095,4]
[365699708,1749834357445,-440.0,0.00021095,4]
[365699709,1749834357466,-440.0,0.00021095,4]
[365699710,1749834357487,-460.0,0.00021095,4]
[365699711,1749834357508,-342.95305357,0.00021095,4]
[365699712,1749834357530,-552.774134,0.00021095,4]
[365699713,1749834357557,-440.0,0.00021095,4]
[365699714,1749834357579,-460.0,0.00021095,4]
[365699715,1749834357605,-316.32705389,0.00021095,4]
[365699716,1749834357627,-440.0,0.00021095,4]
[365699717,1749834357769,-364.78863411,0.00021095,4]
[365699718,1749834357791,-431.00901855,0.00021095,4]
[365699719,1749834357813,-430.0,0.00021095,4]
[365699720,1749834357834,-430.0,0.00021095,4]
[365699721,1749834357856,-430.0,0.00021095,4]
[365699722,1749834357877,-430.0,0.00021095,4]
[365699723,1749834357900,-524.21,0.00021095,4]
[365699724,1749834357921,-440.0,0.00021095,4]
[365699725,1749834357944,-460.0,0.00021095,4]
[365699726,1749834357964,-440.0,0.00021095,4]
[365699727,1749834357985,-460.0,0.00021095,4]
[365699728,1749834358005,-440.0,0.00021095,4]
[365699729,1749834358027,-440.0,0.00021095,4]
[365699730,1749834358049,-430.0,0.00021095,4]
[365699731,1749834358070,-440.0,0.00021095,4]
[365699732,1749834358092,-460.0,0.00021095,4]
[365699733,1749834358112,-440.0,0.00021095,4]
[365699734,1749834358132,-440.0,0.00021095,4]
[365699735,1749834358153,-440.0,0.00021095,4]
[365699736,1749834358174,-371.38536333,0.00021095,4]
[365699737,1749834358194,-460.0,0.00021095,4]
[365699738,1749834358215,-460.0,0.00021095,4]
[365699739,1749834358235,-440.0,0.00021095,4]
[365699740,1749834358256,-430.0,0.00021095,4]
[365699741,1749834358278,-440.0,0.00021095,4]
[365699742,1749834358301,-1978.01,0.00021095,4]
[365699743,1749834358322,-430.0,0.00021095,4]
[365699744,1749834358343,-430.0,0.00021095,4]
[365699745,1749834358364,-550.98118995,0.00021095,4]
[365699746,1749834358389,-597.13,0.00021095,4]
[365699747,1749834358411,-460.0,0.00021095,4]
[365699748,1749834358432,-440.0,0.00021095,4]
[365699749,1749834358453,-440.0,0.00021095,4]
[365699750,1749834358474,-420.0,0.00021095,4]
[365699751,1749834358497,-433.9319657,0.00021095,4]
[365699752,1749834358518,-440.0,0.00021095,4]
[365699753,1749834358540,-440.0,0.00021095,4]
[365699754,1749834358562,-440.0,0.00021095,4]
[365699755,1749834358586,-440.0,0.00021095,4]
[365699756,1749834358609,-500.0,0.00021095,4]
[365699757,1749834358631,-440.0,0.00021095,4]
[365699758,1749834358652,-460.0,0.00021095,4]
[365699759,1749834358677,-400.0,0.00021095,4]
[365699760,1749834358699,-436.48722184,0.00021095,4]
[365699761,1749834358721,-460.0,0.00021095,4]
[365699762,1749834358746,-500.0,0.00021095,4]
[365699763,1749834358769,-500.0,0.00021095,4]
[365699764,1749834358789,-441.86730952,0.00021095,4]
[365699765,1749834358813,-460.0,0.00021095,4]
[365699766,1749834358835,-370.0,0.00021095,4]
[365699767,1749834358859,-2115.81,0.00021095,4]
[365699768,1749834358881,-440.0,0.00021095,4]
[365699769,1749834358902,-416.29435906,0.00021095,4]
[365699770,1749834358923,-430.98302439,0.00021095,4]
[365699771,1749834358944,-440.0,0.00021095,4]
[365699772,1749834358966,-430.0,0.00021095,4]
[365699773,1749834358986,-431.91988334,0.00021095,4]
[365699774,1749834359007,-440.0,0.00021095,4]
[365699775,1749834359028,-440.0,0.00021095,4]
[365699776,1749834359050,-460.0,0.00021095,4]
[365699777,1749834359073,-1301.67,0.00021095,4]
[365699778,1749834359094,-440.0,0.00021095,4]
[365699779,1749834359114,-323.49565794,0.00021095,4]
[365699780,1749834359134,-440.0,0.00021095,4]
[365699781,1749834359155,-302.13937357,0.00021095,4]
[365699782,1749834359175,-432.06933431,0.00021095,4]
[365699783,1749834359196,-440.0,0.00021095,4]
[365699784,1749834359216,-430.0,0.00021095,4]
[365699785,1749834359237,-430.0,0.00021095,4]
[365699786,1749834359259,-440.0,0.00021095,4]
[365699787,1749834359279,-404.08169942,0.00021095,4]
[365699788,1749834359302,-4644.78,0.00021095,4]
[365699789,1749834359324,-440.0,0.00021095,4]
[365699790,1749834359346,-460.0,0.00021095,4]
[365699791,1749834359369,-460.0,0.00021095,4]
[365699792,1749834359397,-761.27647618,0.00021176,4]
[365699793,1749834359424,-761.27647618,0.00021314,5]
[365699794,1749834359446,-1239.32,0.00021359,10]
[365699795,1749834359466,-320.0,0.00021369,4]
[365699796,1749834359487,-460.0,0.00021369,4]
[365699797,1749834359507,-460.0,0.00021369,4]
[365699798,1749834359528,-218.3652818,0.00021369,4]
[365699799,1749834359550,-390.0,0.00021369,4]
[365699800,1749834359573,-440.0,0.00021369,4]
[365699801,1749834359600,-440.0,0.00021369,4]
[365699802,1749834359622,-460.0,0.00021369,4]
[365699803,1749834359643,-320.0,0.00021369,4]
[365699804,1749834359665,-534.22081151,0.00021369,4]
[365699805,1749834359686,-460.0,0.00021369,4]
[365699806,1749834359708,-460.0,0.00021369,4]
[365699807,1749834359728,-518.80545207,0.00021369,4]
[365699808,1749834359750,-440.0,0.00021369,4]
[365699809,1749834359772,-390.0,0.00021369,4]
[365699810,1749834359793,-460.0,0.00021369,4]
[365699811,1749834359815,-460.0,0.00021369,4]
[365699812,1749834359836,-460.0,0.00021369,4]
[365699813,1749834359858,-560.05,0.00021369,4]
[365699814,1749834359880,-226.82740622,0.00021369,4]
[365699815,1749834359902,-460.0,0.00021369,4]
[365699816,1749834359923,-463.95230726,0.00021369,4]
[365699817,1749834359944,-456.02862268,0.00021369,4]
[365699818,1749834360063,-440.0,0.00021369,4]
[365699819,1749834360086,-320.0,0.00021369,4]
[365699820,1749834360109,-460.0,0.00021369,4]
[365699821,1749834360131,-410.0,0.00021369,4]
[365699822,1749834360154,-460.0,0.00021369,4]
[365699823,1749834360176,-460.0,0.00021369,4]
[365699824,1749834360198,-460.0,0.00021369,4]
[365699825,1749834360222,-2221.86,0.00021369,4]
[365699826,1749834360245,-511.84,0.00021369,2]
[365699827,1749834360267,-460.0,0.00021369,4]
[365699828,1749834360290,-460.0,0.00021369,4]
[365699829,1749834360318,-460.0,0.00021369,4]
[365699830,1749834360340,-440.0,0.00021369,4]
[365699831,1749834360365,-817.76,0.00021369,4]
[365699832,1749834360389,-3216.04,0.00021369,4]
[365699833,1749834360411,-515.8,0.00021369,4]
[365699834,1749834360432,-460.0,0.00021369,4]
[365699835,1749834360456,-1763.32,0.00021369,4]
[365699836,1749834360478,-460.0,0.00021369,4]
[365699837,1749834360499,-460.0,0.00021369,4]
[365699838,1749834360523,-2692.28,0.00021369,4]
[365699839,1749834360547,-411.28623729,0.00021369,4]
[365699840,1749834360569,-460.0,0.00021369,4]
[365699841,1749834360594,-337.59566668,0.00021369,4]
[365699842,1749834360617,-1282.25,0.00021369,4]
[365699843,1749834360640,-460.0,0.00021369,4]
[365699844,1749834360662,-330.0,0.00021369,4]
[365699845,1749834360687,-828.28,0.00021369,4]
[365699846,1749834360709,-463.38,0.00021369,4]
[365699847,1749834360732,-460.0,0.00021369,4]
[365699848,1749834360756,-440.0,0.00021369,4]
[365699849,1749834360778,-460.0,0.00021369,4]
[365699850,1749834360801,-460.0,0.00021369,4]
[365699851,1749834360823,-460.0,0.00021369,4]
[365699852,1749834360847,-1259.83,0.00021369,4]
[365699853,1749834360868,-460.0,0.00021369,4]
[365699854,1749834360891,-2982.31,0.00021369,4]
[365699855,1749834360915,-460.0,0.00021369,4]
[365699856,1749834360936,-460.0,0.00021369,4]
[365699857,1749834360960,-440.0,0.00021369,4]
[365699858,1749834360981,-460.0,0.00021369,4]
[365699859,1749834361002,-460.0,0.00021369,4]
[365699860,1749834361023,-460.0,0.00021369,4]
[365699861,1749834361044,-460.0,0.00021369,4]
[365699862,1749834361068,-460.0,0.00021369,4]
[365699863,1749834361089,-754.09,0.00021369,4]
[365699864,1749834361113,-1075.88,0.00021369,4]
[365699865,1749834361136,-2674.28,0.00021369,4]
[365699866,1749834361159,-440.0,0.00021369,4]
[365699867,1749834361179,-460.0,0.00021369,4]
[365699868,1749834361201,-561.33,0.00021369,4]
[365699869,1749834361223,-440.0,0.00021369,4]
[365699870,1749834361244,-554.30399615,0.00021369,4]
[365699871,1749834361269,-524.21,0.00021369,4]
[365699872,1749834361291,-460.0,0.00021369,4]
[365699873,1749834361317,-551.44157898,0.00021369,4]
[365699874,1749834361339,-448.21142772,0.00021369,4]
[365699875,1749834361360,-440.0,0.00021369,4]
[365699876,1749834361382,-565.80700809,0.00021369,4]
[365699877,1749834361406,-1978.01,0.00021369,4]
[365699878,1749834361429,-597.13,0.00021369,4]
[365699879,1749834361452,-460.0,0.00021369,4]
[365699880,1749834361474,-460.0,0.00021369,4]
[365699881,1749834361497,-440.0,0.00021369,4]
[365699882,1749834361522,-460.0,0.00021369,4]
[365699883,1749834361551,-2115.81,0.00021369,4]
[365699884,1749834361573,-400.0,0.00021369,4]
[365699885,1749834361601,-1301.67,0.00021369,4]
[365699886,1749834361628,-4644.78,0.00021369,4]
[365699887,1749834361652,-460.0,0.00021369,4]
[365699888,1749834361676,-460.0,0.00021369,4]
[365699889,1749834361698,-247.29351557,0.00021409,2]
[365699890,1749834361720,-500.0,0.00021441,2]
[365699891,1749834361749,-761.27647618,0.00021452,5]
[365699892,1749834361771,-5000.0,0.0002153,2]
[365699893,1749834361793,-500.0,0.0002153,2]
[365699894,1749834361819,-500.0,0.0002153,2]
[365699895,1749834361840,-500.0,0.0002153,2]
[365699896,1749834361862,-500.0,0.0002153,2]
[365699897,1749834361884,-500.0,0.0002153,2]
[365699898,1749834361906,-500.0,0.0002153,2]
[365699899,1749834361928,-500.0,0.0002153,2]
[365699900,1749834361951,-500.0,0.0002153,2]
[365699901,1749834361973,-500.0,0.0002153,2]
[365699902,1749834361994,-500.0,0.0002153,2]
[365699903,1749834362016,-500.0,0.0002153,2]
[365699904,1749834362038,-500.0,0.0002153,2]
[365699905,1749834362062,-500.0,0.0002153,2]
[365699906,1749834362084,-500.0,0.0002153,2]
[365699907,1749834362106,-500.0,0.0002153,2]
[365699908,1749834362127,-12078.42905589,0.0002153,2]
[365699909,1749834362149,-398.65357407,0.00021547,2]
[365699910,1749834362171,-500.0,0.0002155,2]
[365699911,1749834362206,-761.27647618,0.0002159,5]
[365699912,1749834362236,-519.2447875,0.00021621,2]
[365699913,1749834362259,-180.40256111,0.00021621,2]
[365699914,1749834362384,-1000.0,0.00021621,2]
[365699915,1749834362407,-1021.56263175,0.00021621,2]
[365699916,1749834362430,-1000.0,0.00021621,2]
[365699917,1749834362451,-1000.0,0.00021621,2]
[365699918,1749834362473,-500.0,0.00021621,2]
[365699919,1749834362495,-500.0,0.00021621,2]
[365699920,1749834362517,-500.0,0.00021642,3]
[365699921,1749834362541,-151.0,0.00021643,2]
[365699922,1749834362569,-151.0,0.00021643,2]
[365699923,1749834362594,-151.0,0.00021643,2]
[365699924,1749834362618,-460.0,0.00021643,4]
[365699925,1749834362644,-151.0,0.00021643,2]
[365699926,1749834362668,-151.610522,0.00021643,2]
[365699927,1749834362692,-460.0,0.00021643,4]
[365699928,1749834362714,-460.0,0.00021643,4]
[365699929,1749834362736,-262.03252181,0.00021643,4]
[365699930,1749834391102,200.0,0.0002418,120]
[365699931,1749834430099,-852.0098014,0.00020521,2]
[365699932,1749834430124,-300.0,0.00020727,2]
[365699933,1749834430145,-24900.0,0.00020728,2]
[365699934,1749834430165,-500.0,0.00021073,2]
[365699935,1749834430186,-500.0,0.00021094,2]
[365699936,1749834430206,-440.0,0.00021095,4]
[365699937,1749834430226,-440.0,0.00021095,4]
[365699938,1749834430248,-440.0,0.00021095,4]
[365699939,1749834430270,-2036.7,0.00021095,4]
[365699940,1749834430290,-237.07720742,0.00021095,4]
[365699941,1749834430310,-460.0,0.00021095,4]
[365699942,1749834430333,-2948.04,0.00021095,4]
[365699943,1749834430353,-430.0,0.00021095,4]
[365699944,1749834430375,-440.0,0.00021095,4]
[365699945,1749834430395,-440.0,0.00021095,4]
[365699946,1749834430416,-430.0,0.00021095,4]
[365699947,1749834430437,-161.99085637,0.00021095,4]
[365699948,1749834430460,-749.61,0.00021095,4]
[365699949,1749834430482,-275.15592971,0.00021095,4]
[365699950,1749834430503,-460.0,0.00021095,4]
[365699951,1749834430529,-460.0,0.00021095,4]
[365699952,1749834430552,-460.0,0.00021095,4]
[365699953,1749834430574,-476.08294064,0.00021095,4]
[365699954,1749834430596,-460.0,0.00021095,4]
[365699955,1749834430623,-460.0,0.00021095,4]
[365699956,1749834430645,-1705.47,0.00021095,4]
[365699957,1749834430671,-460.0,0.00021095,4]
[365699958,1749834430692,-422.10499005,0.00021095,4]
[365699959,1749834430712,-430.0,0.00021095,4]
[365699960,1749834430735,-2608.35,0.00021095,4]
[365699961,1749834430756,-460.0,0.00021095,4]
[365699962,1749834430780,-2036.7,0.00021369,4]
[365699963,1749834430802,-420.0,0.00021369,4]
[365699964,1749834430826,-2948.04,0.00021369,4]
[365699965,1749834430849,-749.61,0.00021369,4]
[365699966,1749834430871,-460.0,0.00021369,4]
[365699967,1749834430891,-410.0,0.00021369,4]
[365699968,1749834430912,-460.0,0.00021369,4]
[365699969,1749834430933,-460.0,0.00021369,4]
[365699970,1749834430959,-460.0,0.00021369,4]
[365699971,1749834430982,-1705.47,0.00021369,4]
[365699972,1749834431004,-300.0,0.00021369,4]
[365699973,1749834431026,-2608.35,0.00021369,4]
[365699974,1749834431046,-460.0,0.00021369,4]
[365699975,1749834431066,-158.8399287,0.000216,2]
[365699976,1749834431086,-479.90183394,0.00021621,2]
[365699977,1749834431109,-1487.19,0.00021633,10]
[365699978,1749834431132,-1239.32,0.00021633,10]
[365699979,1749834431153,-196.90339151,0.00021642,3]
[365699980,1749834431176,-137.96747819,0.00021643,4]
[365699981,1749834431199,-460.0,0.00021643,4]
[365699982,1749834431223,-560.05,0.00021643,4]
[365699983,1749834431245,-460.0,0.00021643,4]
[365699984,1749834431266,-460.0,0.00021643,4]
[365699985,1749834431288,-440.0,0.00021643,4]
[365699986,1749834431309,-294.42560679,0.00021643,4]
[365699987,1749834431330,-460.0,0.00021643,4]
[365699988,1749834431351,-511.84,0.00021643,2]
[365699989,1749834431375,-460.0,0.00021643,4]
[365699990,1749834431398,-460.0,0.00021643,4]
[365699991,1749834431419,-365.14201447,0.00021643,4]
[365699992,1749834431442,-1282.25,0.00021643,4]
[365699993,1749834431463,-460.0,0.00021643,4]
[365699994,1749834431486,-828.28,0.00021643,4]
[365699995,1749834431507,-380.0,0.00021643,4]
[365699996,1749834431529,-460.0,0.00021643,4]
[365699997,1749834431553,-1259.83,0.00021643,4]
[365699998,1749834431575,-270.0,0.00021643,4]
[365699999,1749834431598,-2982.31,0.00021643,4]
[365700000,1749834431624,-460.0,0.00021643,4]
[365700001,1749834431646,-460.0,0.00021643,4]
[365700002,1749834431670,-460.0,0.00021643,4]
[365700003,1749834431697,-460.0,0.00021643,4]
[365700004,1749834431720,-460.0,0.00021643,4]
[365700005,1749834431742,-440.0,0.00021643,4]
[365700006,1749834431764,-460.0,0.00021643,4]
[365700007,1749834431787,-754.09,0.00021643,4]
[365700008,1749834431904,-1075.88,0.00021643,4]
[365700009,1749834431927,-2674.28,0.00021643,4]
[365700010,1749834431948,-460.0,0.00021643,4]
[365700011,1749834431973,-561.33,0.00021643,4]
[365700012,1749834431995,-524.21,0.00021643,4]
[365700013,1749834432019,-460.0,0.00021643,4]
[365700014,1749834432041,-1978.01,0.00021643,4]
[365700015,1749834432064,-597.13,0.00021643,4]
[365700016,1749834432085,-460.0,0.00021643,4]
[365700017,1749834432109,-460.0,0.00021643,4]
[365700018,1749834432131,-460.0,0.00021643,4]
[365700019,1749834432155,-2115.81,0.00021643,4]
[365700020,1749834432177,-1301.67,0.00021643,4]
[365700021,1749834432200,-1643.08084981,0.00021643,4]
[365700022,1749834444088,-160.0,0.00020728,2]
[365700023,1749834444109,-485.315503,0.00021095,4]
[365700024,1749834444130,-410.0,0.00021095,4]
[365700025,1749834444150,-400.0,0.00021095,4]
[365700026,1749834444170,-460.0,0.00021095,4]
[365700027,1749834444193,-1186.96,0.00021095,4]
[365700028,1749834444213,-460.0,0.00021095,4]
[365700029,1749834444233,-552.774134,0.00021095,4]
[365700030,1749834444252,-410.0,0.00021369,4]
[365700031,1749834444274,-1186.96,0.00021369,4]
[365700032,1749834444293,-460.0,0.00021369,4]
[365700033,1749834444316,-3001.69915019,0.00021643,4]
[365700034,1749834444338,-460.0,0.00021643,4]
[365700035,1749834444358,-460.0,0.00021643,4]
[365700036,1749834444381,-2036.7,0.00021643,4]
[365700037,1749834444404,-2948.04,0.00021643,4]
[365700038,1749834444423,-155.0,0.00021643,2]
[365700039,1749834444445,-749.61,0.00021643,4]
[365700040,1749834444466,-401.83367062,0.00021643,4]
[365700041,1749834444487,-460.0,0.00021643,4]
[365700042,1749834444509,-460.0,0.00021643,4]
[365700043,1749834444532,-460.0,0.00021643,4]
[365700044,1749834444554,-1705.47,0.00021643,4]
[365700045,1749834444578,-2608.35,0.00021643,4]
[365700046,1749834444600,-460.0,0.00021643,4]
[365700047,1749834444628,-1186.96,0.00021643,4]
[365700048,1749834444649,-460.0,0.00021643,4]
[365700049,1749834444671,-152.597692,0.00021765,2]
[365700050,1749834444691,-360.0,0.00021777,2]
[365700051,1749834444718,-659.7729461,0.000219,6]
[365700052,1749834444740,-500.0,0.00021916,2]
[365700053,1749834444760,-500.0,0.00021916,2]
[365700054,1749834444781,-500.0,0.00021916,2]
[365700055,1749834444802,-365.88693264,0.00021916,2]
[365700056,1749834444822,-608.23474977,0.00021916,2]
[365700057,1749834444843,-151.0,0.00021917,2]
[365700058,1749834444863,-151.0,0.00021917,2]
[365700059,1749834444885,-151.0,0.00021917,2]
[365700060,1749834444905,-460.0,0.00021917,4]
[365700061,1749834444925,-151.0,0.00021917,2]
[365700062,1749834444945,-460.0,0.00021917,4]
[365700063,1749834444967,-460.0,0.00021917,4]
[365700064,1749834444987,-560.05,0.00021917,4]
[365700065,1749834445007,-460.0,0.00021917,4]
[365700066,1749834445027,-460.0,0.00021917,4]
[365700067,1749834445047,-511.84,0.00021917,2]
[365700068,1749834445067,-460.0,0.00021917,4]
[365700069,1749834445086,-460.0,0.00021917,4]